Cogmind - Beta 9.2 @@@ ROGUE MODE // 2019.12.04 @ 19:50:14 Player: GammaGradiation Result: Self-destructed Performance ------------- Evolutions (3) 1500 Regions Visited (6) 1200 Robots Destroyed (13) 65 Value Destroyed (306) 306 Prototype IDs (25) 500 Alien Tech Used (0) 0 Bonus (300) 300 TOTAL SCORE: 3871 Bonus ------- Aligned with FarCom 300 Cogmind --------- Core Integrity 603/700 Matter 199/300 Energy 14/100 System Corruption 0% Temperature Cool (0) Movement Flying (120) Ox1 Location -7/Factory Parts ------- > --- POWER (1) -------- (None) > --- PROPULSION (4) --- Airjet Flight Unit > --- UTILITY (6) ------ Small Storage Unit Advanced Terrain Scanner 0b10 Alert Chip Target Analyzer Propulsion Shielding Propulsion Shielding > --- WEAPON (2) ------- (None) > --- INVENTORY (6) ---- Long-range Terrain Scanner Grenade Launcher Great Axe Peak State ------------ > --- POWER ------------ Light Ion Engine > --- PROPULSION ------- Flight Unit Flight Unit Improved VTOL Module > --- UTILITY ---------- Advanced Terrain Scanner 0b10 Alert Chip Target Analyzer Propulsion Shielding > --- WEAPON ----------- Light Assault Rifle > --- INVENTORY -------- Cooling System Small Storage Unit Propulsion Shielding Grenade Launcher [Rating: 21] Favorites ----------- Power Light Ion Engine Engine Light Ion Engine Propulsion Flight Unit Hover Unit Airjet Flight Unit Flight Unit Utility Propulsion Shielding Device Advanced Terrain Scanner Storage Small Storage Unit Processor 0b10 Alert Chip Protection Propulsion Shielding Weapon Light Assault Rifle Energy Gun Small Laser Ballistic Gun Light Assault Rifle Launcher Grenade Launcher Build | -11 -10 -10 -10 -9 -8 -7 ------- Run | Scr Mat Min Exi Min Mat Fac Slots Evolved 6 | . . . . . 4 2 Power . | . . . . . . . Propulsion 2 | . . . . . 2 . Utility 4 | . . . . . 2 2 Weapon . | . . . . . . . Parts Attached 29 | 2 2 8 1 1 9 6 Power 5 | . . 1 . . 3 1 Engine 5 | . . 1 . . 3 1 Core . | . . . . . . . Reactor . | . . . . . . . Propulsion 5 | . . 2 . . 1 2 Treads . | . . . . . . . Leg . | . . . . . . . Wheel . | . . . . . . . Hover 1 | . . . . . . 1 Flight 4 | . . 2 . . 1 1 Utility 8 | . 1 1 1 . 2 3 Device 2 | . . . . . 1 1 Storage 1 | . . . . . . 1 Processor 3 | . 1 . 1 . 1 . Hackware . | . . . . . . . Protection 2 | . . 1 . . . 1 Artifact . | . . . . . . . Weapon 11 | 2 1 4 . 1 3 . Energy Gun 2 | . 1 . . . 1 . Energy Cannon . | . . . . . . . Ballistic Gun 4 | 2 . 2 . . . . Ballistic Cannon . | . . . . . . . Launcher 5 | . . 2 . 1 2 . Special Weapon . | . . . . . . . Impact Weapon . | . . . . . . . Slashing Weapon . | . . . . . . . Piercing Weapon . | . . . . . . . Special Melee Weapon . | . . . . . . . Unidentified Prototypes 3 | . . . . . 2 1 Parts Lost 7 | . 1 1 . 1 1 3 Power 2 | . . . . 1 1 . Propulsion 2 | . . . . . . 2 Utility . | . . . . . . . Weapon 3 | . 1 1 . . . 1 Highest Loss Streak 3 | . 1 1 . 1 1 3 Average Slot Usage (%) 61 | . 31 77 98 98 63 42 Engine 4 | . . 9 14 12 2 . Flight 13 | . . 18 28 28 18 3 Device 3 | . . . . . 4 7 Processor 14 | . 3 14 12 14 17 15 Protection 9 | . . 7 14 14 9 14 Energy Gun 2 | . 7 3 . . 2 . Ballistic Gun 13 | . 21 22 28 25 9 1 Naked Turns . | . . . . . . . Heaviest Build 9 | 3 3 8 7 8 9 7 Greatest Support 9 | 3 3 8 8 8 8 9 Greatest Overweight (x) 1 | . . 1 . . 1 1 Average Overweight (x) . | . . . . . . . Largest Inventory Capacity 6 | 4 4 4 4 4 4 6 Average Capacity 4 | 4 4 4 4 4 4 4 Most Carried 4 | 4 4 4 4 4 4 4 Average Carried 3 | 3 3 3 4 4 3 3 Final Capacity 6 | 4 4 4 4 4 4 6 Final Carried 4 | 4 4 4 4 4 4 3 Class Distribution -------------------- 62% | Mutant 25% | Scout 8% | Scavenger-Scout 3% | Skirmisher Dominant Class ---------------- Mutant | -10/Materials Mutant | -10/Mines Mutant | -10/Exiles Mutant | -9/Mines Mutant | -8/Materials Scout | -7/Factory Resources | -11 -10 -10 -10 -9 -8 -7 ----------- Run | Scr Mat Min Exi Min Mat Fac Matter Collected 515 | 200 77 114 . 58 66 . Remotely . | . . . . . . . Salvage Created 260 | . 88 32 . 69 71 . Parts 24 | . 5 5 . 2 12 . Haulers Intercepted . | . . . . . . . Recyclers Shooed 1 | . . . . 1 . . Parts Field Recycled . | . . . . . . . Retrieved Matter . | . . . . . . . Parts Self-Destructed . | . . . . . . . Prevented . | . . . . . . . Kills | -11 -10 -10 -10 -9 -8 -7 ------- Run | Scr Mat Min Exi Min Mat Fac Combat Hostiles Destroyed 12 | . 2 3 . 3 4 . Guns 4 | . 2 1 . . 1 . AOE 8 | . . 2 . 3 3 . Classes Destroyed 5 | . 1 1 . 1 2 . Operator 1 | . . . . . 1 . Swarmer 6 | . . 3 . . 3 . Grunt 4 | . 2 . . 2 . . Brawler 1 | . . . . 1 . . Sentry 1 | . . . . . 1 . Best Kill Streak 3 | . 2 3 . 3 3 . Combat Bots Only 3 | . 2 3 . 3 3 . Max Kills in Single Turn 2 | . 1 2 . 2 1 . Gunslinging . | . . . . . . . Exploded 2 | . . 2 . 2 1 . Melee . | . . . . . . . Uniques/NPCs Destroyed . | . . . . . . . Combat | -11 -10 -10 -10 -9 -8 -7 -------- Run | Scr Mat Min Exi Min Mat Fac Damage Taken 767 | . 218 136 . 59 203 151 Core 326 | . 71 58 . 11 89 97 Absorbed by Shields . | . . . . . . . Core Remaining (%) 75 | 100 . . . 44 83 . Volleys Fired 33 | . 14 6 . 4 9 . Largest 2 | . 2 2 . 1 2 . Hottest 83 | . 60 60 . 30 83 . Shots Fired 55 | . 28 9 . 4 14 . Gun 46 | . 28 7 . . 11 . Cannon . | . . . . . . . Launcher 9 | . . 2 . 4 3 . Special . | . . . . . . . Kinetic 35 | . 24 5 . . 6 . Thermal 11 | . 4 2 . . 5 . Explosive 9 | . . 2 . 4 3 . Electromagnetic . | . . . . . . . Robot Hit Streak 10 | . 5 1 . 2 10 . Robot Miss Streak 2 | . 2 2 . 1 2 . Penetration Max . | . . . . . . . Secondary Targets . | . . . . . . . Shots Hit Robots 33 | . 19 2 . 3 9 . Core Hits 23 | . 7 3 . 6 7 . Critical Hits . | . . . . . . . Critical Kills . | . . . . . . . Critical Parts Destroyed . | . . . . . . . Melee Attacks . | . . . . . . . Impact . | . . . . . . . Slashing . | . . . . . . . Piercing . | . . . . . . . Sneak Attacks . | . . . . . . . Combat Hostiles . | . . . . . . . Follow-up Attacks . | . . . . . . . Damage Inflicted 832 | . 204 159 . 225 244 . Guns 350 | . 204 35 . . 111 . Cannons . | . . . . . . . Explosions 482 | . . 124 . 225 133 . Melee . | . . . . . . . Ramming . | . . . . . . . Kinetic 244 | . 194 23 . . 27 . Thermal 106 | . 10 12 . . 84 . Explosive 482 | . . 124 . 225 133 . Electromagnetic . | . . . . . . . Impact . | . . . . . . . Slashing . | . . . . . . . Piercing . | . . . . . . . Highest Corruption . | . . . . . . . Average Corruption . | . . . . . . . Corruption Purged . | . . . . . . . Overload Shots . | . . . . . . . Overflow Damage 10 | . . . . 10 . . Projectiles . | . . . . . . . Explosions 10 | . . . . 10 . . Melee . | . . . . . . . Knockbacks . | . . . . . . . Impact . | . . . . . . . Kinetic . | . . . . . . . Secondary . | . . . . . . . Self-Inflicted Damage 46 | . . . . 15 31 . Shots 2 | . . . . 1 1 . Rammed . | . . . . . . . Targets Rammed . | . . . . . . . Kicked . | . . . . . . . Crushed . | . . . . . . . Highest Temperature 70 | . 5 18 . 4 70 . Average Temperature 18 | . 2 11 . 2 41 . Received Heat Transfer 264 | . 120 . . 24 72 48 Siege Activations . | . . . . . . . Robots Corrupted . | . . . . . . . Combat Hostiles . | . . . . . . . Parts Fried . | . . . . . . . Impact Corruptions . | . . . . . . . Robots Melted . | . . . . . . . Combat Hostiles . | . . . . . . . Parts Melted . | . . . . . . . Heat Transferred 235 | . 25 25 . . 185 . Parts Sabotaged . | . . . . . . . Parts Stolen . | . . . . . . . Parts Stripped . | . . . . . . . Power Chain Reactions . | . . . . . . . Missiles Intercepted . | . . . . . . . Alert | -11 -10 -10 -10 -9 -8 -7 ------- Run | Scr Mat Min Exi Min Mat Fac Peak Influence 201 | . 65 144 . 60 201 80 Average Influence 51 | . 35 90 . 5 59 32 Maximum Alert Level 1 | . . . . . 1 . Low Security (%) 98 | 100 100 100 . 100 95 100 Level 1 1 | . . . . . 4 . Level 2 . | . . . . . . . Level 3 . | . . . . . . . Level 4 . | . . . . . . . Level 5 . | . . . . . . . High Security . | . . . . . . . Max Security . | . . . . . . . Squads Dispatched 3 | . . . . 1 2 . Investigation 1 | . . . . 1 . . Extermination . | . . . . . . . Reinforcement 2 | . . . . . 2 . Assault . | . . . . . . . Garrison . | . . . . . . . Intercept . | . . . . . . . Construction Impeded . | . . . . . . . Haulers Reinforced . | . . . . . . . Stealth | -11 -10 -10 -10 -9 -8 -7 --------- Run | Scr Mat Min Exi Min Mat Fac Distress Signals 3 | . 1 . . . 2 . Communications Jammed . | . . . . . . . Distress Signals . | . . . . . . . Times Spotted 43 | . 6 12 . 3 19 3 Peak Tracking Total 12 | . 3 5 . 3 12 1 Tactical Retreats 7 | . 2 3 . . . 2 Traps | -11 -10 -10 -10 -9 -8 -7 ------- Run | Scr Mat Min Exi Min Mat Fac Traps Triggered . | . . . . . . . Indirectly . | . . . . . . . Trap Hack Attempts . | . . . . . . . Triggered . | . . . . . . . Disarmed . | . . . . . . . Reprogrammed . | . . . . . . . Reused . | . . . . . . . Traps Extracted . | . . . . . . . Installed . | . . . . . . . Triggered . | . . . . . . . Machines | -11 -10 -10 -10 -9 -8 -7 ---------- Run | Scr Mat Min Exi Min Mat Fac Machines Disabled . | . . . . . . . Max in Single Turn . | . . . . . . . Garrison Access 1 | . . . . . . 1 Machines Sabotaged . | . . . . . . . Garrisons Compromised . | . . . . . . . Overloaded Fab Kills . | . . . . . . . Fab Network Shutdowns . | . . . . . . . Hacking | -11 -10 -10 -10 -9 -8 -7 --------- Run | Scr Mat Min Exi Min Mat Fac Machines Accessed 12 | . 2 . 1 1 4 4 Terminals 8 | . 2 . . . 4 2 Fabricators 1 | . . . . . . 1 Repair Stations . | . . . . . . . Recycling Units . | . . . . . . . Scanalyzers . | . . . . . . . Garrison Access 1 | . . . . . . 1 Total Hacks 21 | . 2 . 1 1 10 7 Successful 11 | . 1 . 1 1 3 5 Failed 10 | . 1 . . . 7 2 Catastrophic 1 | . . . . . 1 . Database Lockouts . | . . . . . . . Manual 10 | . 2 . 1 . 4 3 Terminals 16 | . 2 . . . 10 4 Fabricators 2 | . . . . . . 2 Repair Stations . | . . . . . . . Recycling Units . | . . . . . . . Scanalyzers . | . . . . . . . Garrison Access 1 | . . . . . . 1 Terminal Hacks 6 | . 1 . 1 1 3 . Part Schematic 1 | . 1 . . . . . Open Door 1 | . . . . 1 . . Branch Access Points 1 | . . . . . 1 . Emergency Access Points 1 | . . . . . 1 . Recall Investigation 1 | . . . . . 1 . EX-Prototype ID Bank 1 | . . . 1 . . . Fabricator Hacks 2 | . . . . . . 2 Load Schematic 1 | . . . . . . 1 Build 1 | . . . . . . 1 Repair Station Hacks . | . . . . . . . Recycling Unit Hacks . | . . . . . . . Scanalyzer . | . . . . . . . Garrison Access Hacks 1 | . . . . . . 1 Seal Access 1 | . . . . . . 1 Unauthorized Hacks 7 | . 1 . . . 2 4 Terminals 2 | . . . . . . 2 Botnet 2 | . . . . . . 2 Fabricators . | . . . . . . . Repair Stations . | . . . . . . . Recycling Units . | . . . . . . . Scanalyzers . | . . . . . . . Garrison Access . | . . . . . . . Data Cores Recovered 1 | . . . . . 1 . Used 1 | . . . . . 1 . Hacking Detections 6 | . 1 . . . 4 1 Full Trace Events . | . . . . . . . Feedback Events . | . . . . . . . Feedback Blocked . | . . . . . . . Robot Schematics Acquired . | . . . . . . . Robots Built . | . . . . . . . Matter . | . . . . . . . Time . | . . . . . . . Total Robot Build Rating . | . . . . . . . Part Schematics Acquired 1 | . 1 . . . . . Parts Built 2 | . . . . . . 2 Matter 102 | . . . . . . 102 Time 51 | . . . . . . 51 Total Part Build Rating 2 | . . . . . . 2 Parts Repaired . | . . . . . . . Time . | . . . . . . . Parts Recycled . | . . . . . . . Recycled Matter . | . . . . . . . Retrieved Matter . | . . . . . . . Retrieved Components . | . . . . . . . Parts Scanalyzed . | . . . . . . . Part Schematics Acquired . | . . . . . . . Parts Damaged . | . . . . . . . Bothacking | -11 -10 -10 -10 -9 -8 -7 ------------ Run | Scr Mat Min Exi Min Mat Fac Used RIF Installer . | . . . . . . . Robots Hacked . | . . . . . . . Non-combat . | . . . . . . . Combat . | . . . . . . . Robot Hacks Applied . | . . . . . . . Relay Couplers Released . | . . . . . . . Robots Rewired . | . . . . . . . Allies Hacked . | . . . . . . . Hacks Repelled . | . . . . . . . Allies | -11 -10 -10 -10 -9 -8 -7 -------- Run | Scr Mat Min Exi Min Mat Fac Total Allies . | . . . . . . . Largest Group . | . . . . . . . Highest-Rated Group . | . . . . . . . Highest-Rated Ally . | . . . . . . . Total Orders . | . . . . . . . Ally Attacks . | . . . . . . . Total Damage . | . . . . . . . Kills . | . . . . . . . Allies Corrupted . | . . . . . . . Allies Melted . | . . . . . . . Intel | -11 -10 -10 -10 -9 -8 -7 ------- Run | Scr Mat Min Exi Min Mat Fac Robot Analysis Total . | . . . . . . . Derelict Logs Recovered 1 | . . 1 . . . . Drone Launches . | . . . . . . . Drone Recoveries . | . . . . . . . Exploration | -11 -10 -10 -10 -9 -8 -7 ------------- Run | Scr Mat Min Exi Min Mat Fac Turns Passed 1696 | 26 173 356 83 118 462 478 Spaces Moved 2673 | 39 208 628 219 196 584 799 Core 1213 | 39 208 193 . . 131 642 Treads . | . . . . . . . Legs . | . . . . . . . Wheels . | . . . . . . . Hover 28 | . . . . . . 28 Flight 1432 | . . 435 219 196 453 129 Fastest Speed 37 | 50 50 37 37 37 37 37 Average Speed 43 | 50 50 41 37 37 40 49 Slowest Speed 117 | 50 50 100 37 37 117 100 Overloaded Moves . | . . . . . . . Propulsion Burnouts . | . . . . . . . Robots Hopped 17 | . . 7 . . 7 3 Cave-ins Triggered . | . . . . . . . Exploration Rate (%) 39 | 4 41 88 60 35 28 19 Regions Visited 6 Branch Regions 3 Pre-discovered Areas 1 | . . . . 1 . . Known Exits Taken 2 | . 1 1 . . . . Unknown Exits Taken 4 | 1 . . 1 1 1 . Scrap Searched 2 | . . 1 . 1 . . Spaces Dug 15 | . . 8 . . 7 . Terrain Destroyed 65 | . . 19 . 27 19 . Melee . | . . . . . . . Projectile . | . . . . . . . AOE 65 | . . 19 . 27 19 . Actions | -11 -10 -10 -10 -9 -8 -7 --------- Run | Scr Mat Min Exi Min Mat Fac Total 3123 | 44 250 707 220 237 786 879 Wait 385 | . 24 70 . 33 186 72 Move 2633 | 38 207 613 218 195 569 793 Hop 17 | . . 7 . . 7 3 Pick Up 11 | 4 2 2 . 1 . 2 Fast Attach 18 | 2 1 3 1 . 7 4 Attach 8 | . 1 3 . . 2 2 Detach 5 | . . 1 1 1 2 . Swap 3 | . . 2 . 1 . . Drop 10 | . 1 . . 2 4 3 Fire 33 | . 14 6 . 4 9 . Melee . | . . . . . . . Ram . | . . . . . . . Kick . | . . . . . . . Crush . | . . . . . . . Escape Stasis . | . . . . . . . Rewire . | . . . . . . . Trap . | . . . . . . . Miscellaneous . | . . . . . . . Route ------- -11/Scrapyard -10/Materials -10/Mines (discovered 3 exits: *Mat x2 / *Exi) -10/Exiles -9/Mines -8/Materials -7/Factory (discovered 1 exit: Sto) History --------- Turn | Location | Event 14 | -11/Scrapyard | Discovered new exit (range 15) 27 | -11/Scrapyard | Entered Materials 161 | -10/Materials | Discovered new exit (range 14) 200 | -10/Materials | Identified exit to Mines 200 | -10/Materials | Entered Mines 201 | -10/Mines | Assembled infested the area 230 | -10/Mines | Discovered new exit (range 14) 236 | -10/Mines | Identified exit to Materials 288 | -10/Mines | Discovered exit to Materials (range 14) 307 | -10/Mines | Core integrity fell below 50% 350 | -10/Mines | Build established: Mutant 555 | -10/Mines | Deemed a non-threat by the Exiles lab entrance 555 | -10/Mines | Discovered new exit (range 5) 556 | -10/Mines | Identified exit to Exiles 556 | -10/Mines | Entered Exiles 565 | -10/Exiles | Met 8R-AWN 572 | -10/Exiles | Met EX-HEX 583 | -10/Exiles | Met EX-BIN 587 | -10/Exiles | Aligned with FarCom system 587 | -10/Exiles | Given EX-Vault access code 596 | -10/Exiles | Opened EX-Vault 600 | -10/Exiles | Found 0b10 Alert Chip 609 | -10/Exiles | Warned to stay clear of 0b10 Research branches 622 | -10/Exiles | Met EX-DEC 635 | -10/Exiles | Discovered new exit (range 12) 639 | -10/Exiles | Left Exiles lab with 0b10 Alert Chip 639 | -10/Exiles | Entered Mines 643 | -9/Mines | Met a Derelict shopkeep closing up shop 670 | -9/Mines | Learned location of Storage (-7) 743 | -9/Mines | Discovered new exit (range 12) 757 | -9/Mines | Entered Materials 757 | -8/Materials | Evolved 4 slots: Propulsion x2, Utility x2 1207 | -8/Materials | Discovered new exit (range 12) 1219 | -8/Materials | Entered Factory 1219 | -7/Factory | Evolved 2 slots: Utility x2 1220 | -7/Factory | Identified exit to Storage 1348 | -7/Factory | Lost 3 parts (2n1w) 1641 | -7/Factory | Build established: Scout 1681 | -7/Factory | Fabricated Flight Unit? 1697 | -7/Factory | Self-destructed Last Messages --------------- >>Load(Flight Unit) Uploading Flight Unit schematic... Loaded successfully: Flight Unit Rating: 1 Time: 51 Matter: 102 Initiate build sequence. >>Build Building Flight Unit... ETC: 51 01635_ K-01 Serf cleans the Construction Platform. 01661_ Acquired Maneuvering Thrusters. 01663_ Dropped Maneuvering Thrusters. 01669_ K-01 Serf cleans the Construction Platform. 01676_ Acquired Airjet. 01681_ >> FABRICATOR: Completed Flight Unit? 01683_ K-01 Serf cleans the Construction Platform. 01696_ Acquired Flight Unit. [Achievement: Back For More] Map ----- +----------------------------------------------------+ | ?????????????????????????????????????????????????? | | ?????????????????????????????????????????????????? | | ?????????????????????????????????????????????????? | | ?????????????????????????????????????????????????? | | ?????????????????????????????????????????????????? | | ?????????????????????????????????????????????????? | | ??????????????????#??????????????????????????????? | | ?????????????????????????????????????????????????? | | ?????????????????????????????????????????????????? | | ????????????????? ???????????????????????????????? | | ???????????????????????????? ???????? ???????????? | | ????????#???? ?????????#?????"???????????????????? | | ??????????????????????????? ????? ???????????????? | | ?#####?###???????? ?????????"????????????????????? | | #? ?????????????????????????????????????? | | """ """ #???????????????????????????????????????? | | """ """ #???????????????? ??????? ??????????????? | | """ """ #? ????????????????????? ?? ????????????? | | #???? ????? ?#?????????????????????????? | | """ #??????????????????????? ??????? ???????? | | """ // #??#################????????????????????? | | """ // #?? ^ #???????#????????????? | | / #?""""""" ""#????????????????????? | | """ # """"""" =""#?????#??????????????? | | """ # """"""" F"#????????#? ?????????? | | """ # """"""" @""#???????????? ?? ????? | | # ^ #?????????? ?????????? | | ! # #????????????????? ??? | | # r #?? ? ????? ?????????? | | ####+#############+################### ??????? | | ??????? | | ??????? | | ??????? | | """ ??????? | | """ ???????? | | ##################+##### """ ######???????? | | ???????????????? ? # #????????????? | | ! ???????????? # #????????????? | | ! ???????? # """"""" ##???????????? | | """?????# # """"""" #???????#????? | | """""???# # """"""" #????????????? | | ?????# # """"""" #????????????? | | "" """? ?# # #????????????? | | "" """"? ??# # """"""" #????????????? | | "" """""???# # """"""" #????????????? | | ??? ??????# # """"""" #??"???????? ? | | ####?#?????# # """"""" +????????????? | | = ???????# # #????????????? | | ????????# # #????????????? | | """???????##??##################### #????????????? | +----------------------------------------------------+ Best States ------------- Heat Dissipation 34 Energy Generation 18 Energy Capacity 310 Matter Stores 300 Matter Capacity 300 Sight Range 16 Terrain Scan Range 20 Terrain Scan Density 10 Propulsion Shielding 33 Evasion (%) 62 Target Analysis 5 Item Schematics ----------------- Flight Unit | -10/Materials | Hacked Robot Schematics ------------------ None Fabricated ------------ Flight Unit | x2 | -7/Factory Alien Tech Used ----------------- None Achievements -------------- Back For More Challenges ------------ None Game ------ Seed SniperSigixMatter Manual? 0 Play Time 00:41:54 Cumulative 64.1 hours Start 2019.12.04 @ 18:37:26 End 2019.12.04 @ 19:50:14 Sessions 1 Manual Loads 0 Difficulty Rogue Special Mode None Game No. 51 Rogue 51 Adventurer 0 Explorer 0 Win Type - Total 0 Types 0/0/0/0/0/0/0 Lore% 49 Gallery% 49 Achievement% 39 Wizard Run 0 Options --------- ASCII 1 Keyboard 1 Movement Numpad Keybinds 0 Fullscreen 1 Font 18/SmallcapsGlow Map View 76x50 Tactical HUD 1 Map Filters NONE Filters NONE Steam 0 RUN: ab0fe7b6-4f30-499a-aa45-d1f33eb0744b